fUSD/lending_fUSD_20260410
["ID","MTS","AMOUNT","RATE_DAILY","PERIOD"]
[420210924,1775782247545,-480.0,0.00015123,2]
[420210925,1775782247608,-1432.82879872,0.00015144,2]
[420210926,1775782247619,-671.12103623,0.00015144,2]
[420210927,1775782247637,-200.0,0.00015199,2]
[420210928,1775782247659,-601.3376128,0.00015199,2]
[420210929,1775782247678,-578.20924308,0.00015199,2]
[420210930,1775782247694,-199.01,0.00015199,2]
[420210931,1775782247703,-523.0815859,0.00015199,2]
[420210932,1775782247720,-7965.41053268,0.00015199,2]
[420210933,1775782247733,-174.61919141,0.00015199,2]
[420210934,1775782247742,-151.0,0.00015199,2]
[420210935,1775782247751,-743.50770149,0.00015199,2]
[420210936,1775782247764,-279.9045709,0.00015199,2]
[420210937,1775782247774,-170.0,0.00015199,2]
[420210938,1775782247784,-170.0,0.00015199,2]
[420210939,1775782247801,-170.0,0.00015199,2]
[420210940,1775782247811,-170.0,0.00015199,2]
[420210941,1775782247820,-170.0,0.00015199,2]
[420210942,1775782247830,-170.0,0.00015199,2]
[420210943,1775782247844,-170.0,0.00015199,2]
[420210944,1775782247854,-170.0,0.00015199,2]
[420210945,1775782247863,-170.0,0.00015199,2]
[420210946,1775782247873,-170.0,0.00015199,2]
[420210947,1775782247893,-170.0,0.00015199,2]
[420210948,1775782247904,-170.0,0.00015199,2]
[420210949,1775782247922,-151.0,0.00015254,2]
[420210950,1775782247938,-157.0,0.000153,2]
[420210951,1775782247948,-156.78,0.000153,2]
[420210952,1775782247967,-151.0,0.00015309,2]
[420210953,1775782247983,-299.99,0.0001531,2]
[420210954,1775782247996,-9999.99,0.0001531,2]
[420210955,1775782248023,-266.81337064,0.0001532,2]
[420210956,1775782248032,-500.0,0.00015342,2]
[420210957,1775782248055,-500.0,0.00015342,2]
[420210958,1775782248069,-500.0,0.00015342,2]
[420210959,1775782248078,-500.0,0.00015342,2]
[420210960,1775782248097,-500.0,0.00015342,2]
[420210961,1775782248107,-500.0,0.00015342,2]
[420210962,1775782248119,-500.0,0.00015342,2]
[420210963,1775782248147,-500.0,0.00015342,2]
[420210964,1775782248156,-500.0,0.00015342,2]
[420210965,1775782248166,-500.0,0.00015342,2]
[420210966,1775782248188,-500.0,0.00015342,2]
[420210967,1775782248198,-500.0,0.00015342,2]
[420210968,1775782248207,-1240.0,0.00015342,2]
[420210969,1775782248220,-500.0,0.00015342,2]
[420210970,1775782248232,-500.0,0.00015342,2]
[420210971,1775782248241,-500.0,0.00015342,2]
[420210972,1775782248251,-356.0,0.00015342,2]
[420210973,1775782248260,-500.0,0.00015342,2]
[420210974,1775782248269,-500.0,0.00015342,2]
[420210975,1775782248282,-500.0,0.00015342,2]
[420210976,1775782248290,-500.0,0.00015342,2]
[420210977,1775782248297,-500.0,0.00015342,2]
[420210978,1775782248308,-500.0,0.00015342,2]
[420210979,1775782248316,-500.0,0.00015342,2]
[420210980,1775782248325,-500.0,0.00015342,2]
[420210981,1775782248334,-500.0,0.00015342,2]
[420210982,1775782248346,-265.57917069,0.00015342,2]
[420210983,1775782248355,-500.0,0.00015342,2]
[420210984,1775782248364,-500.0,0.00015342,2]
[420210985,1775782248374,-500.0,0.00015342,2]
[420210986,1775782248383,-500.0,0.00015342,2]
[420210987,1775782248403,-500.0,0.00015342,2]
[420210988,1775782248413,-500.0,0.00015342,2]
[420210989,1775782248422,-500.0,0.00015342,2]
[420210990,1775782248431,-500.0,0.00015342,2]
[420210991,1775782248447,-557.38091418,0.00015342,2]
[420210992,1775782248456,-500.0,0.00015342,2]
[420210993,1775782248468,-150.0,0.00015342,2]
[420210994,1775782248485,-500.0,0.00015342,2]
[420210995,1775782248503,-500.0,0.00015342,2]
[420210996,1775782248514,-500.0,0.00015342,2]
[420210997,1775782248528,-500.0,0.00015342,2]
[420210998,1775782248536,-500.0,0.00015342,2]
[420210999,1775782248544,-500.0,0.00015342,2]
[420211000,1775782248551,-151.0,0.00015364,2]
[420211001,1775782248565,-168.10263271,0.00015414,2]
[420211002,1775782248572,-151.0,0.00015419,2]
[420211003,1775782248579,-177.13,0.00015444,2]
[420211004,1775782248593,-151.0,0.00015474,2]
[420211005,1775782248600,-400.0,0.00015502,7]
[420211006,1775782248608,-320.26,0.00015502,7]
[420211007,1775782248616,-400.0,0.00015506,7]
[420211008,1775782248623,-400.0,0.00015506,7]
[420211009,1775782248635,-400.0,0.00015506,7]
[420211010,1775782248643,-4000.0,0.00015507,2]
[420211011,1775782248651,-400.0,0.0001551,30]
[420211012,1775782248659,-400.0,0.00015514,30]
[420211013,1775782248670,-400.0,0.00015514,30]
[420211014,1775782248691,-400.0,0.00015514,30]
[420211015,1775782248698,-1432.82879872,0.00015522,2]
[420211016,1775782248704,-671.12103623,0.00015522,2]
[420211017,1775782248710,-1812.0,0.00015578,2]
[420211018,1775782248724,-160.0,0.00015604,2]
[420211019,1775782248756,-570.538701,0.00015604,2]
[420211020,1775782248766,-981.077402,0.00015604,2]
[420211021,1775782248790,-172.323402,0.00015604,7]
[420211022,1775782248814,-1812.0,0.00015677,2]
[420211023,1775782248825,-222.135636,0.00015677,7]
[420211024,1775782248834,-500.0,0.00015679,2]
[420211025,1775782248859,-500.0,0.00015679,2]
[420211026,1775782248870,-164.48996,0.0001568,7]
[420211027,1775782248880,-691.55,0.000157,2]
[420211028,1775782248890,-196.48,0.000157,2]
[420211029,1775782248906,-2971.31,0.000157,2]
[420211030,1775782248916,-2181.02,0.000157,2]
[420211031,1775782248928,-2232.01,0.000157,2]
[420211032,1775782248943,-2068.09,0.000157,2]
[420211033,1775782248953,-2068.09,0.000157,2]
[420211034,1775782248963,-451.15815462,0.00015731,2]
[420211035,1775782248974,-200.0,0.00015747,2]
[420211036,1775782248995,-174.61919142,0.00015747,2]
[420211037,1775782249005,-1812.0,0.00015767,2]
[420211038,1775782249015,-1812.0,0.00015819,2]
[420211039,1775782249029,-168.0351,0.0001584,2]
[420211040,1775782249044,-168.0351,0.0001585,2]
[420211041,1775782249055,-168.0351,0.0001586,2]
[420211042,1775782249065,-168.0351,0.0001587,2]
[420211043,1775782249097,-200.0,0.00015872,2]
[420211044,1775782249106,-2000.0,0.0001589,2]
[420211045,1775782249130,-2449.89103209,0.00015895,2]
[420211046,1775782249151,-983.40119991,0.00015895,2]
[420211047,1775782249167,-566.707768,0.00015895,2]
[420211048,1775782249176,-111.38722837,0.00015897,2]
[420211049,1775782249215,-1103.03021147,0.00015897,2]
[420211050,1775782249230,-3785.58256016,0.00015897,2]
[420211051,1775782249240,-983.34629407,0.000159,2]
[420211070,1775783432215,-3306.91,0.00012355,2]
[420211071,1775783432223,-250.0,0.00012366,2]
[420211072,1775783432234,-200.0,0.00012386,2]
[420211073,1775783432242,-359.135,0.00012399,2]
[420211074,1775783432253,-175935.7592,0.00012399,2]
[420211075,1775783432260,-3365.61898468,0.000124,2]
[420211076,1775783432268,-1200.0,0.00012435,2]
[420211077,1775783432276,-300.0,0.00012436,2]
[420211078,1775783432287,-300.0,0.00012436,2]
[420211079,1775783432294,-150.0,0.0001249,2]
[420211080,1775783432315,-151.0,0.00012491,2]
[420211081,1775783432322,-151.0,0.00012491,2]
[420211082,1775783432329,-151.0,0.00012491,2]
[420211083,1775783432342,-151.0,0.00012491,2]
[420211084,1775783432356,-151.0,0.00012491,2]
[420211085,1775783432363,-151.0,0.00012491,2]
[420211086,1775783432370,-151.0,0.00012491,2]
[420211087,1775783432383,-151.0,0.00012491,2]
[420211088,1775783432398,-151.0,0.00012491,2]
[420211089,1775783432409,-151.0,0.00012491,2]
[420211090,1775783432419,-151.0,0.00012491,2]
[420211091,1775783432446,-200.0,0.00012491,2]
[420211092,1775783432456,-151.0,0.00012491,2]
[420211093,1775783432466,-538.64756101,0.00012491,2]
[420211094,1775783432480,-151.0,0.00012491,2]
[420211095,1775783432489,-151.0,0.00012491,2]
[420211096,1775783432499,-151.0,0.00012491,2]
[420211097,1775783432510,-151.0,0.00012491,2]
[420211098,1775783432520,-30555.97330221,0.00012499,2]
[420211099,1775783432533,-39101.39547296,0.00012499,2]
[420211100,1775783432545,-24374.17752483,0.00012499,2]
[420211101,1775783432555,-11726.8102,0.000125,2]
[420211102,1775783432565,-1000.0,0.000125,2]
[420211103,1775783432574,-3365.61898459,0.00012789,2]
[420211104,1775783432586,-250.0,0.00013,2]
[420211105,1775783432595,-200.0,0.00013039,2]
[420211106,1775783432605,-3365.61898459,0.00013178,2]
[420211107,1775783432614,-279.026,0.000133,2]
[420211108,1775783432625,-2500.0,0.0001339,2]
[420211109,1775783432639,-116.37980007,0.00013533,2]
[420211110,1775783432845,-1483.62019993,0.00013533,2]
[420211111,1775783432889,-3365.61898459,0.00013567,2]
[420211112,1775783432906,-255.0,0.0001359,2]
[420211113,1775783432920,-250.0,0.0001359,2]
[420211114,1775783432931,-150.0,0.000136,2]
[420211115,1775783432958,-420.0,0.00013646,2]
[420211116,1775783432968,-1680.0,0.00013679,2]
[420211117,1775783432979,-500.0,0.00013698,2]
[420211118,1775783432998,-500.0,0.00013698,2]
[420211119,1775783433008,-500.0,0.00013698,2]
[420211120,1775783433018,-500.0,0.00013698,2]
[420211121,1775783433031,-500.0,0.00013698,2]
[420211122,1775783433057,-500.0,0.00013698,2]
[420211123,1775783433066,-2395.0,0.00013699,2]
[420211124,1775783433096,-882.0,0.00013753,2]
[420211125,1775783433141,-152.0,0.00013756,3]
[420211126,1775783433158,-270.02717187,0.00013763,2]
[420211127,1775783433172,-229.97282813,0.00013763,2]
[420211128,1775783433196,-16383.88,0.00013764,2]
[420211129,1775783433207,-500.0,0.00013808,2]
[420211130,1775783433226,-3365.61898459,0.00013956,2]
[420211131,1775783433242,-152.0,0.00014006,4]
[420211132,1775783433265,-152.0,0.00014256,5]
[420211133,1775783433276,-2116.59,0.00014307,2]
[420211134,1775783433286,-3365.61898459,0.00014344,2]
[420211135,1775783433304,-1165.5,0.00014376,2]
[420211136,1775783433314,-443.98144868,0.0001439,2]
[420211137,1775783433330,-160.0,0.00014435,2]
[420211139,1775783433356,-152.0,0.00014506,6]
[420211141,1775783433366,-228.0,0.00014581,2]
[420211143,1775783433378,-500.0,0.00014623,2]
[420211145,1775783433398,-3365.61898459,0.00014733,2]
[420211147,1775783433412,-152.0,0.00014757,7]
[420211149,1775783433421,-433.0,0.00014789,2]
[420211150,1775783433441,-200.0,0.00014877,2]
[420211152,1775783433454,-175.055,0.000149,2]
[420211154,1775783433463,-1000.0,0.00015,2]
[420211156,1775783433480,-192.67290439,0.00015,2]
[420211158,1775783433490,-500.0,0.00015,2]
[420211160,1775783433500,-300.0,0.00015,2]
[420211162,1775783433510,-773.42,0.00015,2]
[420211164,1775783433529,-152.0,0.00015007,8]
[420211166,1775783433539,-200.09793193,0.00015022,2]
[420211168,1775783433554,-2116.59,0.00015023,2]
[420211170,1775783433570,-1571.0,0.0001504,2]
[420211172,1775783433583,-2351.0,0.00015046,2]
[420211174,1775783433600,-500.0,0.0001506,2]
[420211175,1775783433618,-500.0,0.0001506,2]
[420211176,1775783433635,-500.0,0.0001506,2]
[420211177,1775783433663,-500.0,0.0001506,2]
[420211178,1775783433677,-162.89898735,0.0001506,2]
[420211179,1775783433697,-274.92354608,0.0001506,2]
[420211180,1775783433727,-500.0,0.0001506,2]
[420211181,1775783433752,-500.0,0.00015061,2]
[420211182,1775783433763,-3365.61898459,0.00015122,2]
[420211183,1775783433772,-169.5592292,0.00015147,2]
[420211184,1775783433791,-169.5592292,0.00015147,2]
[420211185,1775783433811,-200.0,0.00015184,2]
[420211186,1775783433822,-601.3376128,0.00015184,2]
[420211187,1775783433837,-1191.11104075,0.00015184,2]
[420211188,1775783433850,-500.0,0.00015184,2]
[420211189,1775783433867,-255.00314013,0.00015184,2]
[420211190,1775783433876,-1600.0,0.00015224,2]
[420211191,1775783433886,-500.0,0.00015239,2]
[420211192,1775783434281,-152.0,0.00015257,9]
[420211193,1775783434324,-500.0,0.00015294,2]
[420211194,1775783434356,-232.60255,0.00015317,2]
[420211195,1775783434368,-434.11661456,0.0001532,2]
[420211196,1775783434389,-2075.0,0.00015342,2]
[420211197,1775783434398,-150.0,0.00015342,2]
[420211198,1775783434413,-150.0,0.00015342,2]
[420211199,1775783434427,-203.70667065,0.00015342,2]
[420211200,1775783434436,-150.0,0.00015342,2]
[420211201,1775783434448,-500.0,0.00015349,2]
[420211202,1775783434471,-291.775964,0.00015395,2]
[420211203,1775783434480,-226.347415,0.00015395,2]
[420211204,1775783434502,-160.0,0.00015395,2]
[420211205,1775783434512,-909.809707,0.00015395,2]
[420211206,1775783434526,-1659.619415,0.00015395,2]
[420211207,1775783434535,-500.0,0.00015404,2]
[420211208,1775783434545,-496.0777518,0.00015459,2]
[420211209,1775783435539,-3.9222482,0.00015459,2]
[420211210,1775783435558,-370.25,0.000155,7]
[420211211,1775783435573,-8.46365915,0.00015505,7]
[420211212,1775783435589,-732.03634085,0.00015505,7]
[420211213,1775783435602,-101.39121424,0.00015507,10]
[420211214,1775783435631,-50.60878576,0.00015507,10]
[420211215,1775783435656,-370.25,0.0001551,7]
[420211216,1775783435671,-413.48160874,0.00015511,2]
[420211217,1775783435694,-1130.87856688,0.00015511,2]
[420211218,1775783435751,-309.66966508,0.00015511,2]
[420211219,1775783435782,-400.45,0.00015511,2]
[420211220,1775783438487,-166.66,0.00013982,2]
[420211221,1775783438502,-166.66,0.00014277,2]
[420211222,1775783438514,-4242.69411677,0.00014325,2]
[420211223,1775783438673,-2808.41588323,0.00014325,2]
[420211224,1775783438683,-166.66,0.00014571,2]
[420211225,1775783438694,-166.66,0.00014865,2]
[420211226,1775783438719,-166.66,0.0001516,2]
[420211227,1775783438738,-1111.13914389,0.00015511,2]
[420211228,1775783438747,-500.0,0.00015513,2]
[420211229,1775783438764,-500.0,0.00015514,2]
[420211232,1775783438774,-500.0,0.00015569,2]
[420211233,1775783438787,-567.6048183,0.00015572,2]
[420211235,1775783438802,-601.0,0.00015585,2]
[420211237,1775783438812,-567.60481828,0.00015619,2]
[420211240,1775783438824,-500.0,0.00015624,2]
[420211241,1775783438835,-2073.2756814,0.00015632,2]
[420211244,1775783438852,-2073.27568136,0.00015662,2]
[420211246,1775783438866,-567.60481828,0.00015666,2]
[420211247,1775783438892,-500.0,0.00015672,2]
[420211250,1775783438904,-500.0,0.00015672,2]
[420211252,1775783438914,-500.0,0.00015672,2]
[420211254,1775783438939,-500.0,0.00015672,2]
[420211256,1775783438950,-500.0,0.00015672,2]
[420211258,1775783438963,-500.0,0.00015672,2]
[420211260,1775783438990,-500.0,0.00015672,2]
[420211263,1775783439002,-500.0,0.00015672,2]
[420211266,1775783439034,-500.0,0.00015672,2]
[420211270,1775783439046,-500.0,0.00015672,2]
[420211273,1775783439069,-500.0,0.00015672,2]
[420211275,1775783439082,-500.0,0.00015672,2]
[420211277,1775783439102,-614.88,0.00015672,2]
[420211279,1775783439137,-500.0,0.00015672,2]
[420211282,1775783439166,-500.0,0.00015672,2]
[420211283,1775783439190,-5888.0,0.00015673,2]
[420211285,1775783439220,-500.0,0.00015679,2]
[420211288,1775783439234,-2073.27568136,0.00015692,2]
[420211289,1775783439254,-500.0,0.00015699,2]
[420211291,1775783439290,-500.0,0.00015699,2]
[420211294,1775783439307,-7051.11,0.00015699,2]
[420211295,1775783439333,-601.0,0.000157,2]
[420211297,1775783439342,-500.0,0.00015708,2]
[420211300,1775783439391,-2297.8600006,0.00015709,2]
[420211302,1775783439428,-12804.3222174,0.00015709,2]
[420211304,1775783439444,-4509.0,0.00015709,2]
[420211306,1775783439498,-500.0,0.00015709,2]
[420211359,1775783440460,-166.66,0.00015454,2]
[420211361,1775783440470,-817.0288724,0.00015709,2]
[420211379,1775783440750,-23608.55389974,0.00015709,2]
[420211386,1775783441211,-14652.79563883,0.00015709,2]
[420211390,1775783443255,-2619.9222051,0.00015587,2]
[420211410,1775783447332,-719.09988561,0.00015587,2]
[420211411,1775783447356,-2297.86000066,0.00015587,2]
[420211412,1775783447401,-23291.23450175,0.00015587,2]
[420211436,1775784632545,-179.03,0.00011118,2]
[420211437,1775784632558,-250.0,0.00011395,2]
[420211438,1775784632575,-600.0,0.00011671,2]
[420211439,1775784632588,-410.24,0.00011909,2]
[420211440,1775784632602,-167.22772898,0.00011934,2]
[420211441,1775784632623,-1500.0,0.0001203,2]
[420211442,1775784632634,-695.14385694,0.00012034,2]
[420211443,1775784632645,-500.0,0.00012077,2]
[420211444,1775784632665,-1230.67,0.0001218,2]
[420211445,1775784632688,-227.66085571,0.00012229,2]
[420211446,1775784632702,-972.33914429,0.00012229,2]
[420211447,1775784632715,-76.90194075,0.0001223,2]
[420211448,1775784632729,-223.09805925,0.0001223,2]
[420211449,1775784632740,-193.0,0.0001223,2]
[420211450,1775784632751,-1295.13211696,0.0001223,2]
[420211451,1775784632764,-400.0,0.0001223,2]
[420211452,1775784632778,-700.37599953,0.0001223,2]
[420211453,1775784632790,-2604.49188351,0.0001223,2]
[420211454,1775784632802,-600.0,0.0001223,2]
[420211455,1775784632812,-250.0,0.0001223,2]
[420211456,1775784632826,-3005.2827,0.00012292,2]
[420211457,1775784632849,-167.22772897,0.00012299,2]
[420211458,1775784632863,-1440.00441298,0.000123,2]
[420211459,1775784632886,-5903.71472622,0.000123,2]
[420211460,1775784632896,-518.59345507,0.00012373,2]
[420211461,1775784632907,-500.0,0.00012373,2]
[420211462,1775784632923,-500.0,0.00012373,2]
[420211463,1775784632936,-500.0,0.00012373,2]
[420211464,1775784632949,-500.0,0.00012373,2]
[420211465,1775784632965,-295.82587216,0.00012373,2]
[420211466,1775784632987,-204.17412784,0.00012373,2]
[420211467,1775784632997,-500.0,0.00012373,2]
[420211468,1775784633023,-501.97044542,0.00012373,2]
[420211469,1775784633049,-151.0,0.00012391,2]
[420211471,1775784633069,-151.0,0.00012391,2]
[420211473,1775784633080,-151.0,0.00012391,2]
[420211475,1775784633096,-151.0,0.00012391,2]
[420211477,1775784633112,-151.0,0.00012391,2]
[420211479,1775784633122,-151.0,0.00012391,2]
[420211481,1775784633139,-151.0,0.00012391,2]
[420211483,1775784633161,-151.0,0.00012391,2]
[420211484,1775784633172,-151.0,0.00012391,2]
[420211485,1775784633183,-151.0,0.00012391,2]
[420211486,1775784633198,-151.0,0.00012391,2]
[420211487,1775784633210,-151.0,0.00012391,2]
[420211488,1775784633222,-200.0,0.00012391,2]
[420211489,1775784633239,-161.082355,0.00012391,2]
[420211490,1775784633249,-151.0,0.00012396,2]
[420211491,1775784633261,-151.0,0.00012396,2]
[420211492,1775784633285,-200.0,0.00012397,2]
[420211493,1775784633296,-312.8352724,0.00012398,2]
[420211494,1775784633308,-500.0,0.00012398,2]
[420211495,1775784633329,-500.0,0.00012398,2]
[420211496,1775784633341,-500.0,0.00012398,2]
[420211497,1775784633351,-500.0,0.00012398,2]
[420211498,1775784633375,-500.0,0.00012398,2]
[420211499,1775784633386,-500.0,0.00012398,2]
[420211500,1775784633423,-388.05224309,0.00012398,2]
[420211501,1775784633436,-500.0,0.00012398,2]
[420211502,1775784633466,-500.0,0.00012398,2]
[420211503,1775784633481,-500.0,0.00012398,2]
[420211504,1775784633524,-500.0,0.00012398,2]
[420211505,1775784633552,-500.0,0.00012398,2]
[420211506,1775784633564,-500.0,0.00012398,2]
[420211507,1775784633601,-109542.32008668,0.00012399,2]
[420211508,1775784633645,-681.2439423,0.00012399,2]
[420211509,1775784633662,-353.98356,0.00012399,2]
[420211510,1775784633705,-1216.57072602,0.00012399,2]
[420211511,1775784633719,-67398.15409254,0.00012399,2]
[420211512,1775784633739,-273.719,0.00012399,2]
[420211513,1775784633762,-3006.60399246,0.00012399,2]
[420211514,1775784633784,-893.3884,0.000124,2]
[420211515,1775784633796,-997.0,0.00012681,2]
[420211516,1775784633816,-7343.71913913,0.000127,2]
[420211517,1775784633828,-189.0,0.00012707,2]
[420211518,1775784633840,-987.0,0.00012813,2]
[420211519,1775784633860,-1499.0,0.00012838,2]
[420211520,1775784633869,-470.0,0.00012864,2]
[420211521,1775784633885,-1000.0,0.00012921,2]
[420211522,1775784633907,-1003.27294265,0.00012921,2]
[420211523,1775784633918,-200.0,0.000131,2]
[420211524,1775784633931,-505.0,0.000131,2]
[420211525,1775784633950,-7343.71913913,0.000131,2]
[420211526,1775784633964,-203.1,0.00013345,2]
[420211527,1775784633974,-1979.71839249,0.000134,2]
[420211528,1775784633989,-1000.0,0.00013431,2]
[420211529,1775784634002,-2000.0,0.00013431,2]
[420211530,1775784634018,-480.0,0.00013452,2]
[420211531,1775784634034,-812.63579297,0.00013468,2]
[420211532,1775784634046,-7343.71913913,0.000135,2]
[420211533,1775784634062,-150.0,0.000136,2]
[420211534,1775784634086,-500.0,0.00013698,2]
[420211535,1775784634097,-500.0,0.00013698,2]
[420211536,1775784634115,-500.0,0.00013698,2]
[420211537,1775784634130,-500.0,0.00013698,2]
[420211538,1775784634140,-500.0,0.00013698,2]
[420211539,1775784634161,-500.0,0.00013698,2]
[420211540,1775784634189,-342.04805757,0.00013698,2]
[420211541,1775784634198,-500.0,0.00013698,2]
[420211542,1775784634212,-500.0,0.00013698,2]
[420211543,1775784634241,-500.0,0.00013698,2]
[420211544,1775784634251,-500.0,0.00013698,2]
[420211545,1775784634266,-500.0,0.00013698,2]
[420211546,1775784634281,-500.0,0.00013698,2]
[420211547,1775784634290,-361.74,0.00013698,2]
[420211548,1775784634304,-150.0,0.00013699,2]
[420211549,1775784634314,-7051.11,0.000137,2]
[420211550,1775784634330,-250.0,0.00013865,2]
[420211551,1775784634339,-717.36,0.00013877,2]
[420211552,1775784634355,-179.03,0.00013898,2]
[420211553,1775784634369,-7343.71913913,0.000139,2]
[420211554,1775784634379,-150.0,0.00014004,2]
[420211555,1775784634393,-15603.17,0.00014082,2]
[420211556,1775784634413,-354.75301142,0.00014091,2]
[420211557,1775784634443,-7343.71913913,0.000143,2]
[420211558,1775784634454,-165.06,0.0001436,2]
[420211559,1775784634464,-170.12,0.00014384,2]
[420211560,1775784634479,-160.0,0.00014439,2]
[420211561,1775784634490,-354.75301142,0.00014453,2]
[420211562,1775784634499,-505.0,0.00014465,3]
[420211563,1775784634517,-151.0,0.00014533,2]
[420211564,1775784634526,-304.21673453,0.00014573,2]
[420211565,1775784634535,-1451.29297697,0.000146,2]
[420211566,1775784634546,-486.0,0.00014618,2]
[420211567,1775784634561,-7343.71913913,0.000147,2]
[420211568,1775784634570,-1479.18415197,0.000147,2]
[420211569,1775784634584,-1760.81584803,0.000147,2]
[420211570,1775784634614,-486.0,0.00014737,2]
[420211571,1775784634624,-1451.29297695,0.00014744,2]
[420211572,1775784634638,-175.0061,0.000148,2]
[420211573,1775784634651,-354.75301142,0.00014815,2]
[420211574,1775784634663,-408.0,0.00014822,2]
[420211575,1775784634672,-244.9043306,0.00014881,2]
[420211576,1775784634692,-1451.29297695,0.00014889,2]
[420211577,1775784634714,-486.0,0.0001495,2]
[420211578,1775784634723,-5000.0,0.00015,2]
[420211579,1775784634747,-168.0,0.00015,2]
[420211580,1775784634758,-168.0,0.00015026,2]
[420211581,1775784634777,-1451.29297695,0.00015033,2]
[420211582,1775784634786,-486.0,0.00015059,2]
[420211583,1775784634798,-1324.95499728,0.00015149,2]
[420211584,1775784634819,-601.3376128,0.00015149,2]
[420211585,1775784634832,-354.75301142,0.00015177,2]
[420211586,1775784634842,-1451.29297695,0.00015178,2]
[420211587,1775784634872,-396.16338953,0.00015199,2]
[420211588,1775784634882,-355.55661525,0.00015199,2]
[420211589,1775784634892,-1000.0,0.000152,2]
[420211590,1775784634912,-9027.65,0.00015205,2]
[420211591,1775784634923,-160.0,0.00015288,2]
[420211592,1775784634935,-408.40119,0.00015288,2]
[420211593,1775784634955,-656.80238,0.00015288,2]
[420211594,1775784634965,-284.43769691,0.0001532,2]
[420211595,1775784634977,-1451.29297695,0.00015322,2]
[420211596,1775784635007,-168.0,0.0001533,2]
[420211597,1775784635022,-1470.0,0.00015342,2]
[420211598,1775784635071,-168.0,0.00015354,2]
[420211599,1775784635094,-168.0,0.00015361,2]
[420211600,1775784635110,-173.830839,0.00015395,2]
[420211601,1775784635121,-2584.0,0.00015414,2]
[420211602,1775784635151,-1451.29297695,0.00015467,2]
[420211603,1775784635164,-168.0,0.00015475,2]
[420211604,1775784635187,-316.55,0.000155,7]
[420211605,1775784635213,-400.0,0.00015505,7]
[420211606,1775784635231,-400.0,0.0001551,7]
[420211607,1775784635243,-153.96,0.00015513,30]
[420211608,1775784635255,-312.23,0.00015517,30]
[420211609,1775784635278,-354.75301142,0.00015538,2]
[420211610,1775784635295,-165.06,0.00015546,2]
[420211611,1775784635321,-350.0,0.00015583,2]
[420211612,1775784635361,-500.0,0.00015586,2]
[420211613,1775784635408,-44012.91766019,0.00015587,2]
[420211614,1775784636743,-30707.82302569,0.00015587,2]
[420211615,1775784636755,-478.0,0.00015587,2]
[420211616,1775784636765,-151.0,0.00015587,2]
[420211617,1775784636774,-151.0,0.00015587,2]
[420211618,1775784636784,-375.453543,0.00015587,2]
[420211619,1775784636796,-151.0,0.00015587,2]
[420211620,1775784636806,-375.453543,0.00015587,2]
[420211621,1775784636819,-151.0,0.00015587,2]
[420211622,1775784636828,-160.845318,0.00015587,2]
[420211623,1775784636840,-151.0,0.00015587,2]
[420211624,1775784636850,-375.453543,0.00015587,2]
[420211625,1775784636862,-151.0,0.00015587,2]
[420211626,1775784636871,-151.0,0.00015587,2]
[420211627,1775784636883,-375.453543,0.00015587,2]
[420211628,1775784636893,-151.0,0.00015587,2]
[420211629,1775784636903,-414.030773,0.00015587,2]